Cogmind - Beta 16 @@@ ROGUE MODE // 2025.10.28 @ 11:14:26 Player: nirgal Result: Destroyed by 4D-AF3(R) with Subdweller Laser Performance ------------- Evolutions (0) 0 Regions Visited (2) 400 Robots Destroyed (15) 75 Value Destroyed (414) 414 Prototype IDs (0) 0 Alien Tech Used (0) 0 Bonus (0) 0 TOTAL SCORE: 889 Bonus ------- None Cogmind --------- Core Integrity 0/250 Matter 249/300 Energy 59/100 System Corruption 0% Temperature Cool (6) Movement Core (750) Ox14 Location -10/Subcaves Parts ------- > --- POWER (1) -------- (None) > --- PROPULSION (2) --- (None) > --- UTILITY (2) ------ High-capacity Storage Unit Seismic Detector > --- WEAPON (2) ------- Small Laser Assault Rifle > --- INVENTORY (20) --- Ion Engine Light Ion Engine Light Ion Engine Neutrino Core Aluminum Leg Aluminum Leg Light Armor Plating Light Armor Plating Scrap Shield Makeshift Sword Peak State ------------ > --- POWER ------------ Light Angular Momentum Engine > --- PROPULSION ------- Light Treads Light Treads > --- UTILITY ---------- High-capacity Storage Unit Seismic Detector > --- WEAPON ----------- Riot Gun Grenade Launcher > --- INVENTORY -------- Ion Engine Light Ion Engine Light Ion Engine Neutrino Core Aluminum Leg Aluminum Leg Light Armor Plating Light Armor Plating Scrap Shield Small Laser Assault Rifle Makeshift Sword [Rating: 15] Favorites ----------- Power Light Ion Engine Engine Light Ion Engine Propulsion Light Treads Treads Light Treads Leg Aluminum Leg Utility Seismic Detector Device Seismic Detector Storage High-capacity Storage Unit Weapon Assault Rifle Energy Gun Small Laser Ballistic Gun Assault Rifle Launcher Grenade Launcher Build | -11 -10 -10 ------- Run | Yrd Mat Sub Slots Evolved . | . . . Power . | . . . Propulsion . | . . . Utility . | . . . Weapon . | . . . Parts Attached 16 | 9 2 5 Power 3 | 1 1 1 Engine 3 | 1 1 1 Core . | . . . Reactor . | . . . Propulsion 4 | 4 . . Treads 2 | 2 . . Leg 2 | 2 . . Wheel . | . . . Hover . | . . . Flight . | . . . Utility 3 | 2 1 . Device 1 | 1 . . Storage 2 | 1 1 . Processor . | . . . Hackware . | . . . Protection . | . . . Artifact . | . . . Weapon 6 | 2 . 4 Energy Gun 2 | 1 . 1 Energy Cannon . | . . . Ballistic Gun 3 | 1 . 2 Ballistic Cannon . | . . . Launcher 1 | . . 1 Special Weapon . | . . . Impact Weapon . | . . . Slashing Weapon . | . . . Piercing Weapon . | . . . Special Melee Weapon . | . . . Unidentified Prototypes . | . . . Parts Lost 8 | . 1 7 Power 2 | . 1 1 Propulsion 2 | . . 2 Utility . | . . . Weapon 4 | . . 4 Highest Loss Streak 6 | . 1 6 To Critical Strikes . | . . . Average Backups 9 | 3 7 11 Power 3 | 1 2 3 Propulsion 1 | 1 2 2 Utility 2 | . 1 2 Weapon 2 | . 1 2 Tool/Special . | . . . Unused Backups 8 | . 1 7 Power 3 | . . 3 Propulsion . | . . . Utility 4 | . 1 3 Weapon 1 | . . 1 Tool/Special . | . . . Average Slot Usage (%) 99 | . 99 98 Engine 13 | . 13 13 Treads 24 | . 13 27 Leg 2 | . 14 . Device 14 | . 14 14 Storage 14 | . 14 14 Energy Gun 7 | . 14 5 Ballistic Gun 11 | . 14 10 Launcher 9 | . . 11 Peak Build Rating 15 | 7 8 15 Average Rating 9 | 5 6 11 On Entrance 4 | . 7 7 Avg Prop Armor Cover (%) . | . . . Naked Turns . | . . . Heaviest Build 56 | 12 47 56 Greatest Support 40 | 40 40 40 Greatest Overweight (x) 3 | 3 2 1 Average Overweight (x) . | . . 1 Largest Inventory Capacity 20 | 8 20 20 Average Capacity 17 | 7 14 20 Most Carried 14 | 6 8 14 Average Carried 10 | 4 7 12 Final Capacity 20 | 8 20 20 Final Carried 11 | 6 8 11 Class Distribution -------------------- 100% | Mutant Dominant Class ---------------- Mutant | -10/Materials Mutant | -10/Subcaves Resources | -11 -10 -10 ----------- Run | Yrd Mat Sub Matter Collected 537 | 228 56 253 Remotely . | . . . Salvage Created 320 | 30 50 240 Parts 29 | 5 8 16 Haulers Intercepted . | . . . Recyclers Shooed . | . . . Parts Field Recycled . | . . . Retrieved Matter . | . . . Parts Self-Destructed 3 | . . 3 Prevented . | . . . Parts Restored . | . . . Kills | -11 -10 -10 ------- Run | Yrd Mat Sub Combat Hostiles Destroyed 13 | . 4 9 Guns 5 | . 4 1 AOE 8 | . . 8 Classes Destroyed 3 | 1 1 1 Tunneler 2 | 2 . . Swarmer 4 | . 4 . Subdweller 9 | . . 9 Best Kill Streak 5 | 1 2 5 Combat Bots Only 5 | . 2 5 Max Kills in Single Turn 3 | 1 1 3 Gunslinging . | . . . Exploded 3 | . . 3 Melee . | . . . Uniques/NPCs Destroyed . | . . . Combat | -11 -10 -10 -------- Run | Yrd Mat Sub Hostile Shots Fired 87 | . 26 61 Missed 24 | . 10 14 Hits 63 | . 16 47 Projectile 63 | . 16 47 Critical Strikes 1 | . . 1 Damage Taken 1119 | . 123 996 Core 254 | . 20 234 Absorbed by Shields . | . . . Core Remaining (%) 100 | 100 . . Volleys Fired 49 | 7 11 31 Largest 2 | 2 2 2 Hottest 80 | 60 60 80 Shots Fired 81 | 14 22 45 Gun 70 | 14 22 34 Cannon . | . . . Launcher 11 | . . 11 Special . | . . . Kinetic 45 | 7 11 27 Thermal 21 | 7 11 3 Explosive 11 | . . 11 Electromagnetic 4 | . . 4 Robot Hit Streak 9 | 3 1 9 Robot Miss Streak 3 | 2 3 2 Penetration Max . | . . . Secondary Targets . | . . . Shots Hit Robots 49 | 8 7 34 Core Hits 26 | 2 4 20 Critical Kills . | . . . Critical Parts Destroyed . | . . . Critical Strikes . | . . . Melee Attacks . | . . . Impact . | . . . Slashing . | . . . Piercing . | . . . Sneak Attacks . | . . . Combat Hostiles . | . . . Follow-up Attacks . | . . . Damage Inflicted 1511 | 95 81 1335 Guns 536 | 95 81 360 Cannons . | . . . Explosions 975 | . . 975 Melee . | . . . Ramming . | . . . Kinetic 357 | 40 35 282 Thermal 121 | 55 46 20 Explosive 975 | . . 975 Electromagnetic 58 | . . 58 Impact . | . . . Slashing . | . . . Piercing . | . . . Highest Corruption . | . . . Average Corruption . | . . . Corruption Purged . | . . . Corruption Blocked . | . . . Overload Shots . | . . . Overflow Damage 8 | . . 8 Projectiles . | . . . Explosions 8 | . . 8 Melee . | . . . Knockbacks . | . . . Impact . | . . . Kinetic . | . . . Secondary . | . . . Self-Inflicted Damage 14 | . . 14 Shots 1 | . . 1 Rammed . | . . . Targets Rammed . | . . . Kicked . | . . . Crushed . | . . . Highest Temperature . | . . . Average Temperature . | . . . Received Heat Transfer 228 | . . 228 Siege Activations . | . . . Martial Activations . | . . . Shielding Activations . | . . . Robots Disrupted . | . . . Combat Hostiles . | . . . Robots Corrupted . | . . . Combat Hostiles . | . . . Parts Fried . | . . . Impact Corruptions . | . . . Robots Melted . | . . . Combat Hostiles . | . . . Parts Melted . | . . . Heat Transferred 275 | 125 100 50 Parts Sabotaged . | . . . Parts Stolen . | . . . Parts Stripped . | . . . Power Chain Reactions . | . . . Alert | -11 -10 -10 ------- Run | Yrd Mat Sub Maximum Alert Level . | . . . Low Security (%) 100 | 100 100 . Level 1 . | . . . Level 2 . | . . . Level 3 . | . . . Level 4 . | . . . Level 5 . | . . . High Security . | . . . Max Security . | . . . Peak Influence 70 | 5 70 . Initial . | . . . Average 13 | . 21 . Influence Increases 110 | 10 100 . Destroy 0b10 Robot/C 80 | . 80 . Destroy 0b10 Robot/NC 10 | 10 . . Destroy Leader 20 | . 20 . Influence Decreases 110 | 10 100 . Time Decay 100 | 10 90 . Lost Part 10 | . 10 . Squads Dispatched . | . . . Investigation . | . . . Extermination . | . . . Reinforcement . | . . . Assault . | . . . Garrison . | . . . Intercept . | . . . Searches Triggered . | . . . Construction Impeded . | . . . Haulers Reinforced . | . . . Active Scanning Responses . | . . . Cargo Convoy Interrupts . | . . . Stealth | -11 -10 -10 --------- Run | Yrd Mat Sub Distress Signals . | . . . Communications Jammed . | . . . Distress Signals . | . . . Times Spotted 19 | . 6 13 Peak Tracking Total 6 | . 3 6 Tactical Retreats . | . . . Traps | -11 -10 -10 ------- Run | Yrd Mat Sub Traps Triggered . | . . . Indirectly . | . . . Trap Hack Attempts . | . . . Triggered . | . . . Disarmed . | . . . Reprogrammed . | . . . Reused . | . . . Traps Extracted . | . . . Installed . | . . . Triggered . | . . . Machines | -11 -10 -10 ---------- Run | Yrd Mat Sub Machines Disabled . | . . . Max in Single Turn . | . . . Machines Repaired . | . . . Machines Dismantled . | . . . Machines Sabotaged . | . . . Overloaded Fab Kills . | . . . Hacking | -11 -10 -10 --------- Run | Yrd Mat Sub Machines Accessed 2 | . 2 . Terminals 1 | . 1 . Fabricators . | . . . Repair Stations . | . . . Recycling Units 1 | . 1 . Scanalyzers . | . . . Garrison Access . | . . . Total Hacks 4 | . 4 . Successful . | . . . Failed 4 | . 4 . Catastrophic . | . . . Database Lockouts . | . . . Manual 2 | . 2 . Terminals 1 | . 1 . Fabricators . | . . . Repair Stations . | . . . Recycling Units 3 | . 3 . Scanalyzers . | . . . Garrison Access . | . . . Terminal Hacks . | . . . Fabricator Hacks . | . . . Repair Station Hacks . | . . . Recycling Unit Hacks . | . . . Scanalyzer . | . . . Garrison Access Hacks . | . . . Unauthorized Hacks . | . . . Terminals . | . . . Fabricators . | . . . Repair Stations . | . . . Recycling Units . | . . . Scanalyzers . | . . . Garrison Access . | . . . Data Cores Recovered . | . . . Used . | . . . Hacking Detections 2 | . 2 . Full Trace Events . | . . . Feedback Events . | . . . Feedback Blocked . | . . . Robot Schematics Acquired . | . . . Robots Built . | . . . Authchips . | . . . Time . | . . . Total Robot Build Rating . | . . . Part Schematics Acquired . | . . . Parts Built . | . . . Authchips . | . . . Time . | . . . Total Part Build Rating . | . . . Part Studies Acquired . | . . . Parts Repaired . | . . . Time . | . . . Parts Recycled . | . . . Recycled Matter . | . . . Retrieved Matter . | . . . Retrieved Components . | . . . Parts Scanalyzed . | . . . Part Schematics Acquired . | . . . Parts Damaged . | . . . Bothacking | -11 -10 -10 ------------ Run | Yrd Mat Sub Used RIF Installer . | . . . Robots Hacked . | . . . Non-combat . | . . . Combat . | . . . Robot Hacks Applied . | . . . Relay Couplers Released . | . . . Fabnet Peak Effective % . | . . . Robots Rewired . | . . . Allies Hacked . | . . . Hacks Repelled . | . . . Allies | -11 -10 -10 -------- Run | Yrd Mat Sub Total Allies . | . . . Largest Group . | . . . Highest-Rated Group . | . . . Highest-Rated Ally . | . . . Total Orders . | . . . Ally Attacks . | . . . Total Damage . | . . . Kills . | . . . Allies Corrupted . | . . . Allies Melted . | . . . Intel | -11 -10 -10 ------- Run | Yrd Mat Sub Active Infowar (turns) 1493 | 47 277 1169 Seismic 1493 | 47 277 1169 Robot Analysis Total . | . . . Derelict Logs Recovered . | . . . Drone Launches . | . . . Drone Recoveries . | . . . Exploration | -11 -10 -10 ------------- Run | Yrd Mat Sub Turns Passed 1609 | 163 277 1169 Spaces Moved 656 | 80 133 443 Core 22 | 22 . . Treads 557 | 57 57 443 Legs 77 | 1 76 . Wheels . | . . . Hover . | . . . Flight . | . . . Fastest Speed 50 | 50 120 240 Average Speed 216 | 153 177 240 Slowest Speed 260 | 200 260 240 Overloaded Moves . | . . . Propulsion Burnouts . | . . . Robots Hopped . | . . . Potential Cave-ins . | . . . Cave-ins Triggered . | . . . Exploration Rate (%) 25 | 5 29 43 Regions Visited 2 Branch Regions 1 Pre-discovered Areas . | . . . Known Exits Taken . | . . . Unknown Exits Taken 2 | 1 1 . Scrap Searched . | . . . Spaces Dug . | . . . Terrain Destroyed 56 | . . 56 Melee . | . . . Projectile . | . . . AOE 56 | . . 56 Terrain Rammed . | . . . Walls Destroyed . | . . . Machines Disabled . | . . . Actions | -11 -10 -10 --------- Run | Yrd Mat Sub Total 759 | 102 152 505 Wait 19 | . . 19 Move 654 | 79 132 443 Hop . | . . . Pick Up 16 | 7 3 6 Fast Attach 7 | 6 1 . Attach 5 | 1 . 4 Detach . | . . . Swap 7 | 2 3 2 Drop 2 | . 2 . Fire 49 | 7 11 31 Melee . | . . . Ram . | . . . Kick . | . . . Crush . | . . . Escape Stasis . | . . . Rewire . | . . . Trap . | . . . Miscellaneous . | . . . Route ------- -11/Scrapyard -10/Materials (discovered 2 exits: [*Min] / [*Sub]) -10/Subcaves History --------- Turn | Location | Event 27 | -11/Scrapyard | Discovered new exit (range 14) 164 | -11/Scrapyard | Entered Materials 236 | -10/Materials | Discovered new exit (range 5) 326 | -10/Materials | Build established: Mutant 407 | -10/Materials | Discovered new exit (range 5) 441 | -10/Materials | Entered Subcaves 442 | -10/Subcaves | Approached by a straggling Scientist 558 | -10/Subcaves | Ambushed by swarm of Subdwellers 641 | -10/Subcaves | Lost 5 allies 1263 | -10/Subcaves | Shifting Twisted Machinery released Mak. Sword 1295 | -10/Subcaves | Core integrity fell below 50% 1607 | -10/Subcaves | Core integrity fell below 20% 1610 | -10/Subcaves | Destroyed by 4D-AF3(R) with Subdweller Laser Last Messages --------------- 01279_ Acquired Mak. Sword. 01288_ RA-J5M(R) emerges from the Twisted Machinery. 01304_ Destroyed Sub. Optics. 01307_ Assault Rifle destroyed. 01307_ RA-J5M(R) destroyed. 01309_ Destroyed Sub. Monowheel. 01311_ 3K-7M7(R) destroyed. 01326_ The unstable cave ceiling collapses. 01329_ Acquired 6 matter. 01331_ Acquired 18 matter. 01346_ The unstable cave ceiling collapses. 01346_ Acquired Sub. Machine Gun. 01364_ Subatomizers dissect the Sub. Monowheel, destroying it. 01587_ Grenade Launcher destroyed. 01590_ Lgt. Treads destroyed. 01597_ Riot Gun destroyed. 01599_ Lgt. Angular Momentum Engine destroyed. 01602_ 4D-AF3(R) IFF system glitched. 01606_ Destroyed Scrap Shield. 01607_ Sub. Machine Gun destroyed. Map ----- +----------------------------------------------------+ | ??????????????????????????????????????????????? | | ??????????????????????????????????????????????? | | ??????????????????????????????????????????????? | | ??????????????????????????????????????????????? | | ??????????????????????????????????????????????? | | ??????????????????????????????????????????????? | | ??????????????????????????????????????????????? | | ??????????????????????????????????????????????? | | ??????????????????????????????????????????????? | | ??????????????????????????????????????????????? | | ??????????????????????????????????????????????? | | ??????????????????????????????????????????????? | | ??????????????????????????????????????????????? | | ???????????????????????##?????????????????????? | | ???????????????????????# ?" ?????????????????? | | ??????????????????????? """" ????????????????? | | ??????????????????????? "" "?????????????????? | | ??????????????????????## """?????????????????? | | ??????????????????????# ?????????????????? | | ?????????????????###### ??????????????????? | | ?????????????????? R ??????????????????? | | ???????????????????# R #??????????????????? | | ??????????????????## #??????????????????? | | ??????????????????# #??????????????????? | | ????????????????????# #??????????????????? | | ????????????????????# @ ##?????????????????? | | ???????????????????## ##????????????????? | | ???????????????????# ##???????????????? | | ???????????????????## ##??????????????? | | ????????????????????## #??????????????? | | ?????????????????????# ## #??????????????? | | ?????####??####?######### #??????????????? | | ?????? ### ### ## #??????????????? | | ?????? ?# ##?????????????? | | #?##?## ?# #?# #?????????????? | | # # ## ### #?## ###?????????????? | | ? # #??# #???????????????? | | ?? ## #??# ## ##???????????????? | | ??? # #??# #?##????????????????? | | ###??# # #?## #???????????????????? | | # ##### ### ##??????????????????? | | ## ## #####??????????????? | | #??????????????? | | ## #?????????????? | | #### ### #?????????????? | | ## ## ######??# #?# #?????????????? | | ######## #???????###??##### ##?????????????? | | #??????## #?????????????????##??????????????? | | ##???????# ????????????????????????????????? | | ?????????# ??????????????????????????????? | +----------------------------------------------------+ Best States ------------- Heat Dissipation 25 Energy Generation 18 Energy Capacity 150 Matter Stores 300 Matter Capacity 300 Sight Range 16 Terrain Scan Density 10 Evasion (%) 55 Recoil Reduction 2 Item Schematics ----------------- None Robot Schematics ------------------ None Fabricated ------------ Nothing Repaired ---------- Nothing Studied --------- None Alien Tech Used ----------------- None Achievements -------------- None Challenges ------------ None Game ------ Seed LatentIntegratedTube Manual? 0 Play Time 00:13:37 Cumulative 15.6 hours Start 2025.10.28 @ 11:01:47 End 2025.10.28 @ 11:14:26 Sessions 1 Manual Loads 0 Difficulty Rogue Special Mode None Game No. 40 Rogue 40 Adventurer 0 Explorer 0 Win Type - Total 0 Types 0/0/0/0/0/0/0/0/0/0 Lore% 2 Gallery% 17 Achievement% 13 Wizard Run 0 Options --------- Layout 0 ASCII 0 Keyboard 1 Movement Vi Keybinds 0 Fullscreen 1 Font 24/Smallcaps Map View 113x50 Zoom Use 0% Tactical HUD 1 Map Filters NONE Filters NONE Steam 1 RUN: 4f791b2c-b4f0-4f95-b751-ed70e27a2068